Cogmind - Beta 15 @@@ ROGUE MODE // 2025.07.28 @ 00:35:26 Player: bugsniper Result: Self-destructed Performance ------------- Evolutions (2) 1000 Regions Visited (3) 600 Robots Destroyed (73) 365 Value Destroyed (1819) 1819 Prototype IDs (12) 240 Alien Tech Used (0) 0 Bonus (-378) -378 TOTAL SCORE: 3646 Bonus ------- Friendly Fire -378 Cogmind --------- Core Integrity 391/550 Matter 353/400 Energy 360/360 System Corruption 0% Temperature Cool (0) Movement Rolling (110) Ox2 Location -8/Materials Parts ------- > --- POWER (2) -------- Heavy Ion Engine Meta Core > --- PROPULSION (2) --- Wheel > --- UTILITY (5+1) ---- Improved Heat Sink Improved Heat Sink Medium Matter Pod > --- WEAPON (2) ------- Beam Cannon Beam Cannon > --- INVENTORY (5) ---- Makeshift Power Source Beam Cannon Subdweller Beam Cannon Mini Grenade Launcher Heavy Mace Peak State ------------ > --- POWER ------------ Light Nuclear Core Meta Core > --- PROPULSION ------- Light Treads Subdweller Monowheel > --- UTILITY ---------- Improved Heat Sink Improved Heat Sink Medium Matter Pod > --- WEAPON ----------- Beam Cannon Beam Cannon > --- INVENTORY -------- Makeshift Power Source Beam Cannon Subdweller Beam Cannon Mini Grenade Launcher Mining Claw [Rating: 29] Favorites ----------- Power Meta Core Engine Light Ion Engine Power Core Meta Core Propulsion Light Treads Treads Light Treads Leg Aluminum Leg Wheel Subdweller Monowheel Utility Scrap Shield Device Improved Heat Sink Storage Medium Matter Pod Protection Scrap Shield Weapon Mini Grenade Launcher Energy Gun EM Pulse Gun Energy Cannon Beam Cannon Ballistic Gun Battle Rifle Launcher Mini Grenade Launcher Build | -11 -10 -10 -8 ------- Run | Yrd Mat Sub Mat Slots Evolved 4 | . . . 4 Power 1 | . . . 1 Propulsion . | . . . . Utility 3 | . . . 3 Weapon . | . . . . Parts Attached 27 | . 13 8 6 Power 7 | . 2 2 3 Engine 4 | . 1 1 2 Core 3 | . 1 1 1 Reactor . | . . . . Propulsion 8 | . 5 2 1 Treads 3 | . 2 1 . Leg 3 | . 3 . . Wheel 2 | . . 1 1 Hover . | . . . . Flight . | . . . . Utility 5 | . 1 2 2 Device 2 | . . . 2 Storage 1 | . . 1 . Processor . | . . . . Hackware . | . . . . Protection 2 | . 1 1 . Artifact . | . . . . Weapon 7 | . 5 2 . Energy Gun . | . . . . Energy Cannon 4 | . 3 1 . Ballistic Gun 1 | . . 1 . Ballistic Cannon . | . . . . Launcher 2 | . 2 . . Special Weapon . | . . . . Impact Weapon . | . . . . Slashing Weapon . | . . . . Piercing Weapon . | . . . . Special Melee Weapon . | . . . . Unidentified Prototypes 1 | . . . 1 Parts Lost 8 | . . 5 3 Power 1 | . . 1 . Propulsion 4 | . . 1 3 Utility 1 | . . 1 . Weapon 2 | . . 2 . Highest Loss Streak 4 | . . 4 2 To Critical Strikes . | . . . . Average Backups 5 | . 7 5 5 Power . | . . . 1 Propulsion 1 | . 3 . . Utility . | . . . . Weapon 3 | . 3 3 4 Tool/Special . | . . . . Unused Backups 18 | . 11 3 4 Power 2 | . . 1 1 Propulsion 6 | . 5 1 . Utility 2 | . 1 1 . Weapon 8 | . 5 . 3 Tool/Special . | . . . . Average Slot Usage (%) 78 | . 93 77 64 Engine 4 | . 8 3 4 Core 4 | . 5 3 8 Treads 19 | . 3 27 7 Leg 4 | . 24 . . Wheel 1 | . . . 6 Device 2 | . . . 11 Storage 4 | . 14 1 7 Protection 8 | . 8 11 . Energy Gun 2 | . 10 . . Energy Cannon 9 | . 16 6 15 Launcher 13 | . 1 22 . Peak Build Rating 29 | . 11 25 29 Average Rating 15 | . 7 14 26 On Entrance 10 | 6 6 8 21 Naked Turns . | . . . . Heaviest Build 33 | 11 17 33 24 Greatest Support 60 | 20 40 60 40 Greatest Overweight (x) 6 | . . . 6 Average Overweight (x) . | . . . 1 Largest Inventory Capacity 8 | . 8 8 5 Average Capacity 5 | . 8 5 5 Most Carried 8 | . 8 8 5 Average Carried 5 | . 7 5 5 Final Capacity 8 | 8 8 5 5 Final Carried 8 | 6 8 5 5 Class Distribution -------------------- 73% | Mutant 16% | Bomber 9% | Scavenger-Mutant Dominant Class ---------------- Mutant | -10/Materials Mutant | -10/Subcaves Scavenger-Mutant | -8/Materials Resources | -11 -10 -10 -8 ----------- Run | Yrd Mat Sub Mat Matter Collected 1436 | 200 170 760 306 Remotely . | . . . . Salvage Created 2185 | . 819 678 688 Parts 145 | . 40 68 37 Haulers Intercepted 3 | . 1 . 2 Recyclers Shooed 4 | . 3 . 1 Parts Field Recycled . | . . . . Retrieved Matter . | . . . . Parts Self-Destructed 10 | . . 10 . Prevented . | . . . . Kills | -11 -10 -10 -8 ------- Run | Yrd Mat Sub Mat Combat Hostiles Destroyed 56 | . 11 32 13 Guns 4 | . 4 . . Cannons 20 | . 4 3 13 AOE 32 | . 3 29 . Classes Destroyed 9 | . 7 2 . Worker 2 | . 1 . 1 Tunneler 2 | . 1 . 1 Hauler 3 | . 1 . 2 Recycler 6 | . 5 . 1 Watcher 3 | . 2 . 1 Swarmer 19 | . 6 6 7 Grunt 8 | . 5 . 3 Sentry 4 | . . 1 3 Subdweller 25 | . . 25 . Thug 1 | . . 1 . Best Kill Streak 10 | . 3 10 3 Combat Bots Only 10 | . 3 10 3 Max Kills in Single Turn 6 | . 2 6 1 Gunslinging . | . . . . Exploded 6 | . 2 6 . Melee . | . . . . Uniques/NPCs Destroyed . | . . . . Combat | -11 -10 -10 -8 -------- Run | Yrd Mat Sub Mat Hostile Shots Fired 155 | . 20 78 57 Missed 41 | . 5 24 12 Hits 114 | . 15 54 45 Projectile 114 | . 15 54 45 Critical Strikes 3 | . 1 1 1 Damage Taken 2231 | . 185 1452 594 Core 372 | . 20 193 159 Absorbed by Shields . | . . . . Redirected to Shielding 5 | . 5 . . Core Remaining (%) 57 | 100 . 14 . Volleys Fired 145 | . 36 62 47 Largest 3 | . 2 3 2 Hottest 180 | . 120 180 120 Shots Fired 275 | . 70 111 94 Gun 30 | . 28 2 . Cannon 161 | . 40 27 94 Launcher 84 | . 2 82 . Special . | . . . . Kinetic 2 | . . 2 . Thermal 167 | . 46 27 94 Explosive 84 | . 2 82 . Electromagnetic 22 | . 22 . . Robot Hit Streak 21 | . 11 21 13 Robot Miss Streak 3 | . 2 1 3 Penetration Max . | . . . . Secondary Targets 1 | . 1 . . Max Gunslinging Chain 1 | . 1 . . Shots Hit Robots 164 | . 48 53 63 Core Hits 107 | . 22 60 25 Critical Kills . | . . . . Critical Parts Destroyed . | . . . . Critical Strikes 1 | . 1 . . Corrupt 1 | . 1 . . Melee Attacks . | . . . . Impact . | . . . . Slashing . | . . . . Piercing . | . . . . Sneak Attacks . | . . . . Combat Hostiles . | . . . . Follow-up Attacks . | . . . . Damage Inflicted 7177 | . 1062 4997 1118 Guns 278 | . 254 24 . Cannons 1965 | . 513 336 1116 Explosions 4932 | . 295 4637 . Melee . | . . . . Ramming 2 | . . . 2 Kinetic 24 | . . 24 . Thermal 1987 | . 535 336 1116 Explosive 4932 | . 295 4637 . Electromagnetic 232 | . 232 . . Impact . | . . . . Slashing . | . . . . Piercing . | . . . . Highest Corruption . | . . . . Average Corruption . | . . . . Corruption Purged . | . . . . Corruption Blocked . | . . . . Overload Shots . | . . . . Overflow Damage 68 | . 31 27 10 Projectiles 23 | . 13 . 10 Explosions 45 | . 18 27 . Melee . | . . . . Knockbacks . | . . . . Impact . | . . . . Kinetic . | . . . . Secondary . | . . . . Self-Inflicted Damage 329 | . 39 290 . Shots 13 | . 2 11 . Rammed 1 | . . . 1 Targets Rammed 1 | . . . 1 Kicked . | . . . . Crushed . | . . . . Highest Temperature 324 | . 198 212 324 Average Temperature 79 | . 70 93 91 Received Heat Transfer 564 | . 42 315 207 Siege Activations . | . . . . Martial Activations . | . . . . Shielding Activations . | . . . . Robots Disrupted . | . . . . Combat Hostiles . | . . . . Robots Corrupted 1 | . 1 . . Combat Hostiles . | . . . . Parts Fried 3 | . 3 . . Impact Corruptions . | . . . . Robots Melted . | . . . . Combat Hostiles . | . . . . Parts Melted 12 | . 3 1 8 Heat Transferred 4194 | . 1123 703 2368 Parts Sabotaged . | . . . . Parts Stolen . | . . . . Parts Stripped . | . . . . Power Chain Reactions . | . . . . Alert | -11 -10 -10 -8 ------- Run | Yrd Mat Sub Mat Maximum Alert Level . | . . . . Low Security (%) 100 | . 100 . 100 Level 1 . | . . . . Level 2 . | . . . . Level 3 . | . . . . Level 4 . | . . . . Level 5 . | . . . . High Security . | . . . . Max Security . | . . . . Peak Influence 199 | . 112 . 199 Initial . | . . . . Average 67 | . 49 . 89 Influence Increases 957 | . 402 150 405 Destroy 0b10 Robot/C 620 | . 220 140 260 Destroy 0b10 Robot/NC 80 | . 50 . 30 Destroy Leader 122 | . 46 10 66 Successful Hack 5 | . 5 . . Disable Machine 15 | . 15 . . Destroy Structure 25 | . 21 . 4 Partial Spotted 15 | . 15 . . Lose Combat Pursuer 75 | . 30 . 45 Influence Decreases 934 | . 339 213 382 Entered New Map 31 | . . 31 . Time Decay 857 | . 339 166 352 Lost Part 46 | . . 16 30 Squads Dispatched 3 | . 2 . 1 Investigation 1 | . 1 . . Extermination . | . . . . Reinforcement 2 | . 1 . 1 Assault . | . . . . Garrison . | . . . . Intercept . | . . . . Searches Triggered . | . . . . Construction Impeded . | . . . . Haulers Reinforced . | . . . . Active Scanning Responses . | . . . . Cargo Convoy Interrupts . | . . . . Stealth | -11 -10 -10 -8 --------- Run | Yrd Mat Sub Mat Distress Signals 7 | . 3 . 4 Communications Jammed . | . . . . Distress Signals . | . . . . Times Spotted 78 | . 17 36 25 Peak Tracking Total 7 | . 4 7 4 Tactical Retreats 5 | . 2 . 3 Traps | -11 -10 -10 -8 ------- Run | Yrd Mat Sub Mat Traps Triggered 2 | . 1 1 . Indirectly . | . . . . Trap Hack Attempts . | . . . . Triggered . | . . . . Disarmed . | . . . . Reprogrammed . | . . . . Reused . | . . . . Traps Extracted . | . . . . Installed . | . . . . Triggered . | . . . . Machines | -11 -10 -10 -8 ---------- Run | Yrd Mat Sub Mat Machines Disabled 7 | . 1 6 . Max in Single Turn 2 | . 1 2 . Machines Repaired . | . . . . Machines Dismantled . | . . . . Machines Sabotaged . | . . . . Overloaded Fab Kills . | . . . . Hacking | -11 -10 -10 -8 --------- Run | Yrd Mat Sub Mat Machines Accessed 7 | . 4 3 . Terminals 3 | . 3 . . Fabricators . | . . . . Repair Stations . | . . . . Recycling Units 1 | . 1 . . Scanalyzers . | . . . . Garrison Access . | . . . . Total Hacks 22 | . 10 12 . Successful 16 | . 4 12 . Failed 6 | . 6 . . Catastrophic . | . . . . Database Lockouts . | . . . . Manual 3 | . 3 . . Terminals 9 | . 9 . . Fabricators . | . . . . Repair Stations . | . . . . Recycling Units 1 | . 1 . . Scanalyzers . | . . . . Garrison Access . | . . . . Terminal Hacks 14 | . 2 12 . Record 9 | . . 9 . Open Door 1 | . . 1 . Terminal Index 1 | . 1 . . Locate Traps 1 | . 1 . . Proto ID Catalog 1 | . . 1 . Release Object 1 | . . 1 . Fabricator Hacks . | . . . . Repair Station Hacks . | . . . . Recycling Unit Hacks 1 | . 1 . . Retrieve Components 1 | . 1 . . Scanalyzer . | . . . . Garrison Access Hacks . | . . . . Unauthorized Hacks 1 | . 1 . . Terminals 1 | . 1 . . Botnet 1 | . 1 . . Fabricators . | . . . . Repair Stations . | . . . . Recycling Units . | . . . . Scanalyzers . | . . . . Garrison Access . | . . . . Data Cores Recovered . | . . . . Used . | . . . . Hacking Detections 2 | . 2 . . Full Trace Events 1 | . 1 . . Feedback Events . | . . . . Feedback Blocked . | . . . . Robot Schematics Acquired . | . . . . Robots Built . | . . . . Authchips . | . . . . Time . | . . . . Total Robot Build Rating . | . . . . Part Schematics Acquired . | . . . . Parts Built . | . . . . Authchips . | . . . . Time . | . . . . Total Part Build Rating . | . . . . Parts Repaired . | . . . . Time . | . . . . Parts Recycled . | . . . . Recycled Matter . | . . . . Retrieved Matter . | . . . . Retrieved Components 10 | . 10 . . Parts Scanalyzed . | . . . . Part Schematics Acquired . | . . . . Parts Damaged . | . . . . Bothacking | -11 -10 -10 -8 ------------ Run | Yrd Mat Sub Mat Used RIF Installer . | . . . . Robots Hacked . | . . . . Non-combat . | . . . . Combat . | . . . . Robot Hacks Applied . | . . . . Relay Couplers Released . | . . . . Fabnet Peak Effective % . | . . . . Robots Rewired . | . . . . Allies Hacked . | . . . . Hacks Repelled . | . . . . Allies | -11 -10 -10 -8 -------- Run | Yrd Mat Sub Mat Total Allies . | . . . . Largest Group . | . . . . Highest-Rated Group . | . . . . Highest-Rated Ally . | . . . . Total Orders . | . . . . Ally Attacks . | . . . . Total Damage . | . . . . Kills . | . . . . Allies Corrupted . | . . . . Allies Melted . | . . . . Intel | -11 -10 -10 -8 ------- Run | Yrd Mat Sub Mat Active Infowar (turns) . | . . . . Robot Analysis Total . | . . . . Derelict Logs Recovered . | . . . . Drone Launches . | . . . . Drone Recoveries . | . . . . Exploration | -11 -10 -10 -8 ------------- Run | Yrd Mat Sub Mat Turns Passed 5380 | . 1093 3349 938 Spaces Moved 2752 | 1 574 1910 267 Core 30 | . . . 30 Treads 2189 | . 76 1910 203 Legs 499 | 1 498 . . Wheels 34 | . . . 34 Hover . | . . . . Flight . | . . . . Fastest Speed 110 | 120 120 160 110 Average Speed 157 | 120 125 160 205 Slowest Speed 350 | 120 160 160 350 Overloaded Moves . | . . . . Propulsion Burnouts . | . . . . Robots Hopped . | . . . . Potential Cave-ins 11 | . . 11 . Cave-ins Triggered . | . . . . Exploration Rate (%) 38 | 2 61 54 37 Regions Visited 3 Branch Regions 1 Pre-discovered Areas 1 | . . 1 . Known Exits Taken . | . . . . Unknown Exits Taken 3 | 1 1 1 . Scrap Searched 5 | . . 5 . Spaces Dug 75 | . . 75 . Terrain Destroyed 547 | . 18 529 . Melee . | . . . . Projectile . | . . . . AOE 547 | . 18 529 . Terrain Rammed . | . . . . Walls Destroyed . | . . . . Machines Disabled . | . . . . Actions | -11 -10 -10 -8 --------- Run | Yrd Mat Sub Mat Total 3539 | . 882 2097 560 Wait 547 | . 231 81 235 Move 2749 | . 573 1909 267 Hop . | . . . . Pick Up 18 | . 12 5 1 Fast Attach 13 | . 2 6 5 Attach 8 | . 4 4 . Detach . | . . . . Swap 17 | . 9 7 1 Drop 27 | . 15 9 3 Fire 145 | . 36 62 47 Melee . | . . . . Ram . | . . . . Kick . | . . . . Crush 1 | . . . 1 Escape Stasis . | . . . . Rewire 1 | . . 1 . Trap . | . . . . Miscellaneous 13 | . . 13 . Route ------- -11/Scrapyard -10/Materials (discovered 4 exits: [*Mat x2] / [*Min] / *Sub) -10/Subcaves (discovered 3 exits: *Mat x2 / [*Rec]) -8/Materials (discovered 1 exit: [*Fac]) History --------- Turn | Location | Event 1 | -11/Scrapyard | Discovered new exit (range 0) 1 | -11/Scrapyard | Entered Materials 178 | -10/Materials | Discovered new exit (range 9) 318 | -10/Materials | Build established: Mutant 604 | -10/Materials | Discovered new exit (range 14) 666 | -10/Materials | Discovered new exit (range 7) 761 | -10/Materials | Discovered new exit (range 7) 1094 | -10/Materials | Entered Subcaves 1094 | -10/Subcaves | Discovered new exit (range 13) 1095 | -10/Subcaves | Approached by a straggling Scientist 1214 | -10/Subcaves | Ambushed by swarm of Subdwellers 1214 | -10/Subcaves | Ambushed by Subdwellers from Twisted Machinery 1214 | -10/Subcaves | Ambushed by Subdwellers from Twisted Machinery 1214 | -10/Subcaves | Ambushed by Subdwellers from Twisted Machinery 1214 | -10/Subcaves | Ambushed by Subdwellers from Twisted Machinery 1214 | -10/Subcaves | Ambushed by Subdwellers from Twisted Machinery 1238 | -10/Subcaves | Destroyed 10 combat bots 1583 | -10/Subcaves | Discovered new exit (range 11) 2173 | -10/Subcaves | Ambushed by Subdweller buried in earth 2266 | -10/Subcaves | Core integrity fell below 50% 2267 | -10/Subcaves | Ambushed by Subdweller buried in earth 2494 | -10/Subcaves | Shifting Twisted Machinery released Mak. Power Source 2818 | -10/Subcaves | Discovered new exit (range 15) 2860 | -10/Subcaves | Shifting Twisted Machinery released Riot Gun 2861 | -10/Subcaves | Shifting Twisted Machinery released Mak. Power Source 3272 | -10/Subcaves | Visited 4L-MR0's lab 3323 | -10/Subcaves | Found Meta Core 3324 | -10/Subcaves | Attached Meta Core, gained temporary slots: Propulsion, Utility, Weapon 3382 | -10/Subcaves | A swath of the cavern ceiling suddenly collapsed 3631 | -10/Subcaves | Build established: Bomber 3783 | -10/Subcaves | Learned location of Zion (-7) 3783 | -10/Subcaves | Met a Zionite searching for "candidates" 3997 | -10/Subcaves | Shifting Twisted Machinery released Battle Cannon 4113 | -10/Subcaves | Ambushed by Subdweller buried in earth 4113 | -10/Subcaves | Ambushed by Subdweller buried in earth 4122 | -10/Subcaves | Ambushed by Subdweller buried in earth 4143 | -10/Subcaves | Core integrity fell below 20% 4169 | -10/Subcaves | Destroyed 8 combat bots 4179 | -10/Subcaves | Lost 4 parts (1n1u2w) 4443 | -10/Subcaves | Entered Materials 4443 | -8/Materials | Evolved 4 slots: Power x1, Utility x3 4539 | -8/Materials | Build established: Mutant 4775 | -8/Materials | Discovered new exit (range 11) 4997 | -8/Materials | Build established: Scavenger-Mutant 5381 | -8/Materials | Self-destructed Last Messages --------------- 05342_ R-06 Scavenger collects Transport Network Coupler. 05342_ Dropped Lgt. Deuterium Engine. 05343_ Acquired Prototype Engine. 05343_ Identified Hvy. Ion Engine. 05343_ K-01 Serf collects debris. 05345_ K-01 Serf cleans the Electrolysis Chamber. 05348_ K-01 Serf collects debris. 05348_ K-01 Serf cleans the Electrolysis Chamber. 05351_ K-01 Serf collects debris. 05352_ K-01 Serf cleans the Electrolysis Chamber. 05355_ K-01 Serf collects debris. 05356_ K-01 Serf cleans the Electrolysis Chamber. 05358_ K-01 Serf collects debris. 05381_ Connecting with Repair Station... 05381_ Current location identified: Materials Map ----- +----------------------------------------------------+ | ???????# #???????????# """ # #?????? | | ########+##??????????# # #?????? | | # #??????????# # * #?????? | | # ! #??????????# # #?????? | | # ]]] #??????????# # #?????? | | # ]] #??????????# # #?????? | | # ]] ! #??????????# #############?????? | | # #??????????#!= ???????? | | # #??????????#!= ???????? | | # #??????????# ???????? | | #######+###?????###### ############???????? | | ???????????? ! #?? ????????? | | ???????????? # """ ??????????? | | ???????????? """ + """ ??????????? | | ?????????????#+####### """ # """ ??????????? | | ?????????????????????# """ #?? ????????? | | ?????????????????????# #????#######???????? | | ?????????????????????# #??????????????????? | | ?????????????????????# == #??????????????????? | | ?????????????????????#k == #??????????????????? | | ?????????????????????# #??????????????????? | | ?????????????????????# #??????????????????? | | ?????????????????????# #??????????????????? | | ?????????????????????# #??????????????????? | | ???????????????????? + ####???????????????? | | ??????????????????? # "@"" ???????????? | | ??????????????????T" # "R"" ???????? | | ??????????????????##?# """" ????????? | | ?????????????????????####################????????? | | ?????????????????????????????????????????????????? | | ?????????????????????????????????????????????????? | | ?????????????????????????????????????????????????? | | ?????????????????????????????????????????????????? | | ?????????????????????????????????????????????????? | | ?????????????????????????????????????????????????? | | ?????????????????????????????????????????????????? | | ?????????????????????????????????????????????????? | | ?????????????????????????????????????????????????? | | ?????????????????????????????????????????????????? | | ?????????????????????????????????????????????????? | | ?????????????????????????????????????????????????? | | ?????????????????????????????????????????????????? | | ?????????????????????????????????????????????????? | | ?????????????????????????????????????????????????? | | ?????????????????????????????????????????????????? | | ?????????????????????????????????????????????????? | | ?????????????????????????????????????????????????? | | ?????????????????????????????????????????????????? | | ?????????????????????????????????????????????????? | | ?????????????????????????????????????????????????? | +----------------------------------------------------+ Best States ------------- Heat Dissipation 59 Energy Generation 26 Energy Capacity 360 Matter Stores 373 Matter Capacity 400 Sight Range 16 Terrain Scan Density 10 Armor Coverage 800 Core Shielding 20 Evasion (%) 55 Recoil Reduction 3 Item Schematics ----------------- None Robot Schematics ------------------ None Fabricated ------------ Nothing Repaired ---------- Nothing Alien Tech Used ----------------- None Achievements -------------- None Challenges ------------ None Game ------ Seed PotentialPulseHarness Manual? 0 Play Time 00:38:22 Cumulative 420.9 hours Start 2025.07.27 @ 23:56:43 End 2025.07.28 @ 00:35:26 Sessions 1 Manual Loads 0 Difficulty Rogue Special Mode None Game No. 235 Rogue 235 Adventurer 0 Explorer 0 Win Type - Total 11 Types 10/0/1/0/0/0/0/0/0/0 Lore% 44 Gallery% 64 Achievement% 53 Wizard Run 0 Options --------- Layout 1 ASCII 0 Keyboard 0 Movement Numpad Keybinds 0 Fullscreen 1 Font 24/Smallcaps Map View 50x35 Zoom Use 0% Tactical HUD 1 Map Filters NONE Filters NONE Steam 1 RUN: 58949bc5-6c65-4d30-b3b1-342b5f75322e